Cogmind - Beta 10.2 @@@ ROGUE MODE // 2021.08.22 @ 11:14:01 Player: CrossedViper Result: Destroyed by S-43 Plague with Heavy Machine Gun Performance ------------- Evolutions (7) 3500 Regions Visited (23) 4600 Robots Destroyed (159) 795 Value Destroyed (5864) 5864 Prototype IDs (62) 1240 Alien Tech Used (0) 0 Bonus (758) 758 TOTAL SCORE: 16757 Bonus ------- High Alert Combat Kills 18 Follower Combat Kills 898 Aligned with FarCom 300 Met Data Miner 300 Met Warlord at Base 500 MAIN.C Attacked Warlord 500 Warlord Defense Kill 2436 Scanned by Researcher 500 Friendly Fire -4694 Cogmind --------- Core Integrity 0/1300 Matter 240/300 Energy 98/100 System Corruption 14% Temperature Cool (0) Movement Core (50) Location -3/Quarantine Parts ------- > --- POWER (2) -------- (None) > --- PROPULSION (6) --- (None) > --- UTILITY (9) ------ Advanced Armor Integrity Analyzer Deep Network Scanner > --- WEAPON (4) ------- (None) > --- INVENTORY (4) ---- High-capacity Storage Unit High-capacity Storage Unit Experimental Phase Shifter Energy Mantle Peak State ------------ > --- POWER ------------ Vortex Chain Reactor > --- PROPULSION ------- Heavy Treads Heavy Treads > --- UTILITY ---------- Advanced Cooling System High-capacity Storage Unit High-capacity Storage Unit Experimental Sensor Array Advanced Armor Integrity Analyzer Advanced Transmission Jammer Improved Weapon Shielding Advanced Remote Shield Deep Network Scanner > --- WEAPON ----------- Advanced Beam Cannon KE Penetrator KE Penetrator Helical Railgun > --- INVENTORY -------- Mini Fusion Reactor Improved Quantum Reactor Improved Quantum Reactor Heavy Treads Heavy Treads Heavy Treads Improved Fusion Compressor Experimental Heat Sink High-capacity Storage Unit High-capacity Storage Unit Advanced Armor Integrity Analyzer Experimental Phase Shifter Hacking Suite Advanced Beam Cannon [Rating: 128] Favorites ----------- Power Light Angular Momentum Engine Engine Light Angular Momentum Engine Power Core Micro Fission Core Reactor Antimatter Reactor Propulsion Armored Treads Treads Armored Treads Leg Carbon-fiber Leg Hover Unit Cooled Gravmag System Utility Large Storage Unit Device Experimental Sensor Array Storage Large Storage Unit Processor Improved Signal Interpreter Hackware Deep Network Scanner Protection Hardened Medium Armor Plating Weapon Advanced Beam Cannon Energy Gun Particle Gun Energy Cannon Advanced Beam Cannon Ballistic Gun Assault Rifle Ballistic Cannon Slug Cannon Launcher Advanced EMP Blaster Special Weapon Plasma Cutter Piercing Weapon Spear Build | -11 -10 -10 -10 -9 -8 -8 -7 -7 -7 -7 -7 -7 -6 -6 -5 -5 -5 -4 -4 -4 -4 -3 -3 ------- Run | Scr Mat Min Exi Min Mat Sto Fac Was Fac Low Low Dat Pro Fac Fac Upp War Pro Fac Upp Upp Res Qua Slots Evolved 14 | . . . . . 4 . 2 . . . . . . 2 2 . . . 2 . . 2 . Power 1 | . . . . . . . . . . . . . . . . . . . 1 . . . . Propulsion 4 | . . . . . . . 1 . . . . . . . 1 . . . . . . 2 . Utility 7 | . . . . . 3 . 1 . . . . . . 2 1 . . . . . . . . Weapon 2 | . . . . . 1 . . . . . . . . . . . . . 1 . . . . Parts Attached 235 | 6 2 3 5 1 38 32 3 3 4 8 18 12 3 11 21 1 17 7 17 1 6 10 6 Power 15 | 1 . . 1 . 3 2 . 1 . . 1 . . 1 1 . 1 . 1 . . 2 . Engine 7 | 1 . . 1 . 2 1 . . . . 1 . . 1 . . . . . . . . . Core 2 | . . . . . 1 . . . . . . . . . 1 . . . . . . . . Reactor 6 | . . . . . . 1 . 1 . . . . . . . . 1 . 1 . . 2 . Propulsion 37 | 2 . . . . 7 8 1 . . . 2 2 . 2 5 . . 1 . . 3 1 3 Treads 31 | 2 . . . . 5 7 1 . . . 2 2 . 2 5 . . 1 . . 3 1 . Leg 5 | . . . . . 2 . . . . . . . . . . . . . . . . . 3 Wheel . | . . . . . . . . . . . . . . . . . . . . . . . . Hover 1 | . . . . . . 1 . . . . . . . . . . . . . . . . . Flight . | . . . . . . . . . . . . . . . . . . . . . . . . Utility 109 | 1 2 1 1 . 16 11 2 . 2 8 7 3 2 7 12 1 8 3 11 1 2 5 3 Device 49 | . 1 . . . 5 5 1 . . 4 3 1 1 2 5 1 3 3 8 1 . 3 2 Storage 13 | 1 1 1 1 . 2 2 . . 1 . . . . . . . . . 2 . . 2 . Processor 7 | . . . . . 1 . . . . 1 . . . . . . 4 . . . 1 . . Hackware 6 | . . . . . . 1 . . . . . . . . 3 . . . . . 1 . 1 Protection 34 | . . . . . 8 3 1 . 1 3 4 2 1 5 4 . 1 . 1 . . . . Artifact . | . . . . . . . . . . . . . . . . . . . . . . . . Weapon 74 | 2 . 2 3 1 12 11 . 2 2 . 8 7 1 1 3 . 8 3 5 . 1 2 . Energy Gun 10 | . . . . . 4 1 . . . . 2 . . . . . 1 . . . . 2 . Energy Cannon 17 | . . . . . . 4 . . 1 . 2 2 . 1 1 . 1 1 3 . 1 . . Ballistic Gun 28 | 2 . 1 3 . 6 2 . 1 1 . 1 1 . . 2 . 4 2 2 . . . . Ballistic Cannon 2 | . . . . 1 1 . . . . . . . . . . . . . . . . . . Launcher 11 | . . 1 . . 1 2 . . . . 3 1 1 . . . 2 . . . . . . Special Weapon 1 | . . . . . . 1 . . . . . . . . . . . . . . . . . Impact Weapon . | . . . . . . . . . . . . . . . . . . . . . . . . Slashing Weapon . | . . . . . . . . . . . . . . . . . . . . . . . . Piercing Weapon 5 | . . . . . . 1 . 1 . . . 3 . . . . . . . . . . . Special Melee Weapon . | . . . . . . . . . . . . . . . . . . . . . . . . Unidentified Prototypes 26 | . . . . . 3 7 1 1 . . . . . . 3 . 5 . 4 . . 1 1 Parts Lost 41 | . . . . . 7 2 . . . . . . . 1 1 . 7 1 1 1 9 9 2 Power 4 | . . . . . 1 . . . . . . . . 1 . . . . . . . 2 . Propulsion 8 | . . . . . 1 . . . . . . . . . . . 1 . . . 2 3 1 Utility 17 | . . . . . 4 1 . . . . . . . . 1 . 2 1 1 1 3 2 1 Weapon 12 | . . . . . 1 1 . . . . . . . . . . 4 . . . 4 2 . Highest Loss Streak 9 | . . . . . 3 2 . . . . . . . 1 1 . 4 1 1 1 6 9 2 Average Slot Usage (%) 90 | . 97 100 98 100 95 98 94 100 93 92 91 90 100 90 90 82 80 81 81 81 57 43 20 Engine 5 | . 14 14 14 14 5 8 7 5 . . 4 7 7 5 1 . . . . . . . . Reactor 1 | . . . . . . . . 1 7 7 2 . . . . . 3 5 5 5 4 3 . Treads 18 | . 28 28 28 28 12 17 17 23 23 23 23 23 23 20 18 11 11 11 10 10 9 8 . Device 7 | . 11 9 . . 11 8 7 7 1 4 3 3 6 8 9 11 12 10 19 19 11 6 2 Storage 17 | . 14 18 28 28 18 23 23 23 23 23 23 19 15 13 11 11 11 11 10 10 8 3 . Processor 3 | . . . . . 3 . . . . 5 7 7 7 6 2 . 2 11 5 5 5 7 4 Hackware 3 | . . . . . . 6 7 7 7 1 . . . . 8 11 7 5 5 5 5 9 8 Protection 7 | . . . . . 11 6 7 7 7 2 3 10 15 16 13 11 10 5 5 4 . . . Energy Gun 1 | . . . . . 9 3 . . . . . 2 . . . . 1 . . . . 4 . Energy Cannon 4 | . . . . . . 7 . . 6 7 5 5 8 11 7 5 2 2 3 5 3 . . Ballistic Gun 14 | . 28 27 26 27 14 14 15 15 15 15 12 3 7 6 8 11 11 13 13 15 6 . . Naked Turns . | . . . . . . . . . . . . . . . . . . . . . . . . Heaviest Build 138 | 13 26 41 49 48 58 72 70 78 112 112 112 103 95 106 112 112 124 108 135 138 136 113 . Greatest Support 168 | 40 40 40 40 40 40 42 62 62 62 62 62 60 60 60 140 140 140 140 140 140 140 168 28 Greatest Overweight (x) 2 | . . 1 1 1 2 2 1 1 1 1 1 1 1 1 1 . 1 . . . 1 1 . Average Overweight (x) . | . . . 1 1 1 1 1 1 1 1 1 1 1 1 . . . . . . . . . Largest Inventory Capacity 24 | 6 10 16 16 16 16 22 22 22 24 24 24 24 18 18 18 18 18 18 20 20 20 20 4 Average Capacity 18 | 5 9 12 16 16 16 19 22 22 23 24 24 21 18 18 18 18 18 18 19 20 17 9 4 Most Carried 24 | 4 3 9 16 16 16 22 21 21 24 24 24 24 18 18 18 18 18 16 17 18 17 4 4 Average Carried 16 | . 1 6 12 12 14 18 20 20 22 23 23 19 18 17 16 18 17 15 15 17 13 3 4 Final Capacity 24 | 6 10 16 16 16 16 22 22 22 24 24 24 18 18 18 18 18 18 18 20 20 4 4 4 Final Carried 24 | . 2 9 9 16 16 22 20 21 24 24 24 18 18 18 18 18 18 16 17 17 4 4 4 Class Distribution -------------------- 24% | Mutant 12% | Scavenger-Tank 11% | Hacker-Tank 10% | Tank 8% | Hauler-Tank 8% | Scavenger-Gunner 6% | Hauler-Mutant 5% | Hacker-Gunner 4% | Hacker-Mutant 4% | Hauler-Skirmisher Dominant Class ---------------- Mutant | -10/Materials Mutant | -10/Mines Mutant | -10/Exiles Mutant | -9/Mines Scavenger-Tank | -8/Materials Scavenger-Gunner | -8/Storage Hauler-Mutant | -7/Factory Hauler-Mutant | -7/Waste Hauler-Tank | -7/Factory Hauler-Skirmisher | -7/Lower Caves Hauler-Skirmisher | -7/Lower Caves Mutant | -7/Data Miner Mutant | -6/Proximity Caves Tank | -6/Factory Hacker-Tank | -5/Factory Hacker-Tank | -5/Upper Caves Hacker-Tank | -5/Warlord Scavenger-Gunner | -4/Proximity Caves Hacker-Gunner | -4/Factory Hacker-Gunner | -4/Upper Caves Hacker-Mutant | -4/Upper Caves Hacker-Mutant | -3/Research Hacker-Mutant | -3/Quarantine Resources | -11 -10 -10 -10 -9 -8 -8 -7 -7 -7 -7 -7 -7 -6 -6 -5 -5 -5 -4 -4 -4 -4 -3 -3 ----------- Run | Scr Mat Min Exi Min Mat Sto Fac Was Fac Low Low Dat Pro Fac Fac Upp War Pro Fac Upp Upp Res Qua Matter Collected 4827 | 228 . 196 26 132 766 465 . 93 90 197 295 120 80 220 397 . 467 279 106 291 279 100 . Remotely . | . . . . . . . . . . . . . . . . . . . . . . . . Salvage Created 7832 | . . 127 45 205 1250 1303 . 42 207 231 504 20 209 465 564 . 1276 305 106 226 542 205 . Parts 420 | . . 5 . 15 67 75 . 6 19 18 28 4 4 22 30 . 60 20 7 16 16 8 . Haulers Intercepted 8 | . . . . . 4 2 . . 1 . . . . . . . . . . . . 1 . Recyclers Shooed 9 | . . . . 1 1 . . . 4 . . . . 3 . . . . . . . . . Parts Field Recycled . | . . . . . . . . . . . . . . . . . . . . . . . . Retrieved Matter . | . . . . . . . . . . . . . . . . . . . . . . . . Parts Self-Destructed 191 | . . . . . . . . . . 17 8 . 1 . . . 105 20 . 16 24 . . Prevented 42 | . . . . . . . . . . . 14 . 3 . . . 25 . . . . . . Kills | -11 -10 -10 -10 -9 -8 -8 -7 -7 -7 -7 -7 -7 -6 -6 -5 -5 -5 -4 -4 -4 -4 -3 -3 ------- Run | Scr Mat Min Exi Min Mat Sto Fac Was Fac Low Low Dat Pro Fac Fac Upp War Pro Fac Upp Upp Res Qua Combat Hostiles Destroyed 120 | . . 2 3 6 18 14 . . 1 5 12 . 3 8 8 . 16 7 1 8 7 1 . Guns 67 | . . . 3 6 15 9 . . 1 1 . . . 4 2 . 8 7 1 3 6 1 . Cannons 30 | . . . . . 2 5 . . . 4 1 . . 4 6 . 2 . . 5 1 . . AOE 17 | . . 2 . . . . . . . . 10 . 2 . . . 3 . . . . . . Classes Destroyed 22 | . . 2 2 1 6 . . 1 1 1 2 . . . . . 4 1 . . 1 . . Worker 4 | . . . . . 1 . . . 3 . . . . . . . . . . . . . . Builder 2 | . . . . . . . . . 1 . . . . . 1 . . . . . . . . Hauler 8 | . . . . . 4 2 . . 1 . . . . . . . . . . . . 1 . Recycler 8 | . . . . . 3 4 . . . . . . . . 1 . . . . . . . . Minesweeper 1 | . . . . . . . . . . . 1 . . . . . . . . . . . . Operator 3 | . . . . . 2 . . . . . . . . . . . . . 1 . . . . Watcher 2 | . . . . . 2 . . . . . . . . . . . . . . . . . . Swarmer 38 | . . 2 . 3 3 . . . . 5 7 . . . 4 . 2 5 . 7 . . . Grunt 36 | . . . . 3 7 6 . . . . 4 . 3 3 . . 3 . . 1 5 1 . Brawler 1 | . . . . . . . . . . . . . . . . . . . . . 1 . . Protector 1 | . . . . . . . . . . . . . . . . . 1 . . . . . . Sentry 21 | . . . . . 6 7 . . . . . . . 1 4 . . 1 1 . 1 . . Demolisher 1 | . . . . . . . . . 1 . . . . . . . . . . . . . . Hunter 7 | . . . . . 2 1 . . . . . . . 1 . . 3 . . . . . . Programmer 6 | . . . . . . . . . . . 1 . . 3 . . 2 . . . . . . Behemoth 1 | . . . . . . . . . . . . . . . . . . 1 . . . . . Striker 2 | . . . . . . . . . . . . . . . . . 2 . . . . . . Executioner 3 | . . . . . . . . . . . . . . . . . 3 . . . . . . Zionite 1 | . . . 1 . . . . . . . . . . . . . . . . . . . . Assembled 3 | . . . 3 . . . . . . . . . . . . . . . . . . . . Surgeon 2 | . . . . . . . . . . 2 . . . . . . . . . . . . . Thug 4 | . . 2 . . . . . . 1 . . . . . . . 1 . . . . . . Martyr 1 | . . . . . . . . 1 . . . . . . . . . . . . . . . Guerrilla 1 | . . . . 1 . . . . . . . . . . . . . . . . . . . Mutant 3 | . . . . . . . . . . . . . . . . . 3 . . . . . . Best Kill Streak 7 | . . 2 3 3 4 6 . . 2 4 5 1 3 3 4 . 7 5 1 5 6 1 . Combat Bots Only 7 | . . 2 3 3 4 6 . . 1 4 4 . 3 3 4 . 7 5 1 5 6 1 . Max Kills in Single Turn 4 | . . 2 1 1 2 2 . 1 1 1 4 1 2 1 1 . 2 2 1 1 1 1 . Gunslinging 1 | . . . . . 1 . . . . . . . . . . . . 1 . . . . . Exploded 3 | . . 2 . . . . . . . . 3 . 2 . . . 2 . . . . . . Melee . | . . . . . . . . . . . . . . . . . . . . . . . . Uniques/NPCs Destroyed 2 | . . . . . . 1 . . . . . 1 . . . . . . . . . . . 01-MTF (-8/Storage) Data Miner (-7/Data Miner) Combat | -11 -10 -10 -10 -9 -8 -8 -7 -7 -7 -7 -7 -7 -6 -6 -5 -5 -5 -4 -4 -4 -4 -3 -3 -------- Run | Scr Mat Min Exi Min Mat Sto Fac Was Fac Low Low Dat Pro Fac Fac Upp War Pro Fac Upp Upp Res Qua Damage Taken 14671 | . 201 119 564 121 1714 909 . . 167 538 382 . 39 677 492 . 2848 716 102 456 1732 1620 1274 Core 2544 | . 39 . 116 24 163 117 . . 20 91 26 . 21 60 . . 256 58 15 13 205 233 1087 Absorbed by Shields 423 | . . . . . . . . . . . . . . . . . . . 30 135 124 134 . Reduced by Siege Mode 141 | . . . . . . . . . . . . . . . . . 12 34 . 7 88 . . Core Remaining (%) 70 | 100 . . . 28 . 49 . . . . . . 77 92 . . . 68 . . 79 . . Volleys Fired 376 | . 7 10 1 14 90 39 . 5 9 19 17 . 3 27 24 . 39 13 7 17 21 14 . Largest 4 | . 2 2 2 2 3 3 . 2 3 3 3 . 1 3 3 . 3 3 4 4 4 2 . Hottest 172 | . 40 40 40 68 155 170 . 51 124 124 124 . 36 164 164 . 131 96 172 172 172 123 . Shots Fired 1002 | . 14 17 44 28 255 104 . 10 27 45 23 . 3 73 72 . 90 37 27 68 48 17 . Gun 756 | . 14 14 44 24 240 68 . 10 18 26 4 . . 23 39 . 72 37 20 51 35 17 . Cannon 208 | . . . . 4 13 34 . . 9 19 2 . . 46 33 . 11 . 7 17 13 . . Launcher 37 | . . 3 . . 2 1 . . . . 17 . 3 4 . . 7 . . . . . . Special 1 | . . . . . . 1 . . . . . . . . . . . . . . . . . Kinetic 636 | . 14 14 44 28 170 40 . 10 18 26 4 . . 23 39 . 63 37 20 51 35 . . Thermal 305 | . . . . . 82 63 . . 9 19 2 . . 46 33 . 11 . 7 17 13 3 . Explosive 6 | . . 3 . . 2 1 . . . . . . . . . . . . . . . . . Electromagnetic 55 | . . . . . 1 . . . . . 17 . 3 4 . . 16 . . . . 14 . Robot Hit Streak 46 | . 6 6 35 46 17 19 . 4 4 9 2 . . 13 29 . 16 14 15 7 16 26 . Robot Miss Streak 12 | . 4 1 1 2 6 2 . 1 3 12 7 . . 4 6 . 3 4 2 2 2 1 . Penetration Max 1 | . . . . . . 1 . . 1 . . . . . 1 . 1 . . 1 1 . . Secondary Targets 8 | . . . . 1 2 . . . . . . . . . . . 2 3 . . . . . Max Gunslinging Chain 1 | . . . . 1 1 . . . . . . . . . . . 1 1 . . . . . Autonomous 43 | . . . 43 . . . . . . . . . . . . . . . . . . . . Shots Hit Robots 645 | . 8 12 40 19 160 76 . 9 15 18 4 2 . 49 43 . 55 26 21 33 41 14 . Core Hits 351 | . 1 11 8 12 59 31 . 4 10 14 17 1 7 39 29 . 53 15 4 10 19 7 . Critical Hits 33 | . . . . . 5 . . . 2 1 1 . . 3 5 . 6 1 5 1 3 . . Critical Kills 12 | . . . . . 2 . . . . 1 1 . . . 2 . 3 . 1 1 1 . . Critical Parts Destroyed 20 | . . . . . 3 . . . 2 . . . . 2 3 . 3 1 4 . 2 . . Melee Attacks 12 | . . . . . . 7 . 1 . . . 4 . . . . . . . . . . . Impact . | . . . . . . . . . . . . . . . . . . . . . . . . Slashing . | . . . . . . . . . . . . . . . . . . . . . . . . Piercing 12 | . . . . . . 7 . 1 . . . 4 . . . . . . . . . . . Sneak Attacks 9 | . . . . . . 7 . . . . . 2 . . . . . . . . . . . Combat Hostiles . | . . . . . . . . . . . . . . . . . . . . . . . . Follow-up Attacks 1 | . . . . . . . . . . . . 1 . . . . . . . . . . . Damage Inflicted 17872 | . 109 360 1160 330 2197 2223 . 182 604 361 890 180 354 1036 1026 . 3729 663 407 588 1108 365 . Guns 10023 | . 109 150 1160 215 1962 949 . 140 310 139 22 . . 468 492 . 1411 643 299 363 881 310 . Cannons 3093 | . . . . 104 186 622 . . 124 222 26 . . 568 534 . 147 . 108 225 227 . . Explosions 3618 | . . 203 . . 35 21 . . . . 842 . 354 . . . 2125 . . . . 38 . Melee 783 | . . . . . . 561 . 42 . . . 180 . . . . . . . . . . . Ramming 351 | . . 7 . 11 14 66 . . 170 . . . . . . . 46 20 . . . 17 . Kinetic 8358 | . 109 150 1160 319 1279 462 . 140 310 139 22 . . 468 492 . 1122 643 299 363 881 . . Thermal 4927 | . . . . . 854 1113 . . 124 222 110 . . 568 534 . 755 . 108 225 227 87 . Explosive 259 | . . 203 . . 35 21 . . . . . . . . . . . . . . . . . Electromagnetic 3194 | . . . . . 15 . . . . . 758 . 354 . . . 1806 . . . . 261 . Impact . | . . . . . . . . . . . . . . . . . . . . . . . . Slashing . | . . . . . . . . . . . . . . . . . . . . . . . . Piercing 783 | . . . . . . 561 . 42 . . . 180 . . . . . . . . . . . Highest Corruption 20 | . . . . . . . . . . . 3 3 4 1 . . 20 20 . . 2 14 14 Average Corruption 5 | . . . . . . . . . . . 2 3 3 1 . . 5 20 . . 1 11 14 Corruption Purged . | . . . . . . . . . . . . . . . . . . . . . . . . Effects 108 | . . . . . . . . . . . 4 4 19 2 . . 18 51 . . . 5 5 Message Errors 23 | . . . . . . . . . . . 1 1 5 2 . . 4 8 . . . . 2 Matter Fused 24 | . . . . . . . . . . . 2 . 6 . . . 5 10 . . . 1 . Heat Flow Errors 7 | . . . . . . . . . . . 1 1 1 . . . . 3 . . . 1 . Energy Discharges 14 | . . . . . . . . . . . . 1 3 . . . 2 6 . . . 1 1 Parts Rejected 2 | . . . . . . . . . . . . . . . . . . 1 . . . . 1 Data Loss (minor) 9 | . . . . . . . . . . . . 1 4 . . . 2 2 . . . . . Data Loss (major) 1 | . . . . . . . . . . . . . . . . . . 1 . . . . . Misfires 1 | . . . . . . . . . . . . . . . . . . 1 . . . . . Alerts 2 | . . . . . . . . . . . . . . . . . . 2 . . . . . Misdirections 11 | . . . . . . . . . . . . . . . . . . 8 . . . 2 1 Targeting Errors 10 | . . . . . . . . . . . . . . . . . 4 6 . . . . . Weapon Failures 4 | . . . . . . . . . . . . . . . . . 1 3 . . . . . Overload Shots . | . . . . . . . . . . . . . . . . . . . . . . . . Overflow Damage 167 | . . . . 5 . 78 . . . . 20 45 6 . . . 13 . . . . . . Projectiles 5 | . . . . 5 . . . . . . . . . . . . . . . . . . . Explosions 39 | . . . . . . . . . . . 20 . 6 . . . 13 . . . . . . Melee 123 | . . . . . . 78 . . . . . 45 . . . . . . . . . . . Knockbacks 3 | . . . . 2 . . . . 1 . . . . . . . . . . . . . . Impact 1 | . . . . . . . . . 1 . . . . . . . . . . . . . . Kinetic 2 | . . . . 2 . . . . . . . . . . . . . . . . . . . Secondary . | . . . . . . . . . . . . . . . . . . . . . . . . Self-Inflicted Damage 457 | . . 36 . . 39 37 . . . . 47 . 21 18 . . 231 . . . . 28 . Shots 15 | . . 1 . . 1 1 . . . . 2 . 1 1 . . 7 . . . . 1 . Rammed 45 | . . 3 . 5 1 13 . . 14 . . . . 1 . . . 1 . . . 7 . Targets Rammed 48 | . . 3 . 5 2 13 . . 16 . . . . 1 . . . 1 . . . 7 . Kicked 1 | . . . . . 1 . . . . . . . . . . . . . . . . . . Crushed 2 | . . . . . . . . . 2 . . . . . . . . . . . . . . Highest Temperature 335 | . . . . 27 165 317 . . 156 335 156 123 217 270 75 . 64 251 56 4 4 233 . Average Temperature 71 | . . . . 11 26 125 . . 61 129 49 68 75 86 39 . 21 50 22 2 3 141 . Received Heat Transfer 2126 | . 111 9 . 45 594 378 . . 39 . 9 . 9 144 63 . 72 114 21 23 372 54 69 Effects 4 | . . . . . . . . . . 3 . . . . . . . . . . . 1 . Energy Bleed 2 | . . . . . . . . . . 1 . . . . . . . . . . . 1 . Interference 2 | . . . . . . . . . . 2 . . . . . . . . . . . . . Siege Activations 8 | . . . . . . . . . . . . . . . 1 . 1 3 . 1 1 1 . Total Turns 113 | . . . . . . . . . . . . . . . 5 . 4 32 . 14 57 1 . Longest Duration 57 | . . . . . . . . . . . . . . . 5 . 4 12 . 14 57 1 . Robots Corrupted 8 | . . . . . . . . . . . 1 . 1 . . . 6 . . . . . . Combat Hostiles 5 | . . . . . . . . . . . 1 . 1 . . . 3 . . . . . . Parts Fried 20 | . . . . . . . . . . . 4 . 5 . . . 10 . . . . 1 . Impact Corruptions 1 | . . . . . . . . . 1 . . . . . . . . . . . . . . Robots Melted 1 | . . . . . 1 . . . . . . . . . . . . . . . . . . Combat Hostiles 1 | . . . . . 1 . . . . . . . . . . . . . . . . . . Parts Melted 15 | . . . . . 4 4 . . . . . . . 3 2 . 1 . . 1 . . . Heat Transferred 8906 | . . . . . 2072 2162 . . 222 407 137 . . 962 962 . 822 . 185 407 407 161 . Parts Sabotaged . | . . . . . . . . . . . . . . . . . . . . . . . . Parts Stolen . | . . . . . . . . . . . . . . . . . . . . . . . . Parts Stripped . | . . . . . . . . . . . . . . . . . . . . . . . . Power Chain Reactions 7 | . . . . . . . . . . . 3 . . . . . 3 . . . . 1 . Missiles Intercepted . | . . . . . . . . . . . . . . . . . . . . . . . . Alert | -11 -10 -10 -10 -9 -8 -8 -7 -7 -7 -7 -7 -7 -6 -6 -5 -5 -5 -4 -4 -4 -4 -3 -3 ------- Run | Scr Mat Min Exi Min Mat Sto Fac Was Fac Low Low Dat Pro Fac Fac Upp War Pro Fac Upp Upp Res Qua Peak Influence 471 | . 51 84 . 146 281 380 65 22 471 . . . . 117 206 . . . 146 . . 158 180 Initial 114 | . . 19 . . . 53 65 22 . . . . . . 16 . . . 94 . . 114 72 Average 109 | . 17 44 . 23 174 212 65 13 216 . . . . 37 60 . . . 83 . . 122 72 Maximum Alert Level 2 | . . . . . 1 1 . . 2 . . . . . 1 . . . . . . . . Low Security (%) 79 | 100 100 100 . 100 54 47 100 100 51 . . . . 100 97 . . . 100 . . 100 100 Level 1 19 | . . . . . 45 52 . . 39 . . . . . 2 . . . . . . . . Level 2 1 | . . . . . . . . . 9 . . . . . . . . . . . . . . Level 3 . | . . . . . . . . . . . . . . . . . . . . . . . . Level 4 . | . . . . . . . . . . . . . . . . . . . . . . . . Level 5 . | . . . . . . . . . . . . . . . . . . . . . . . . High Security . | . . . . . . . . . . . . . . . . . . . . . . . . Max Security . | . . . . . . . . . . . . . . . . . . . . . . . . Squads Dispatched 21 | . 1 . . . 1 6 . . 4 . . . . 3 1 . . . . . 1 1 3 Investigation 7 | . 1 . . . 1 2 . . 1 . . . . . 1 . . . . . . . 1 Extermination 4 | . . . . . . . . . 1 . . . . 3 . . . . . . . . . Reinforcement 6 | . . . . . . 2 . . 2 . . . . . . . . . . . . 1 1 Assault 1 | . . . . . . . . . . . . . . . . . . . . . 1 . . Garrison 3 | . . . . . . 2 . . . . . . . . . . . . . . . . 1 Intercept . | . . . . . . . . . . . . . . . . . . . . . . . . Construction Impeded 1 | . . . . . . 1 . . . . . . . . . . . . . . . . . Haulers Reinforced 1 | . . . . . . . . . . . . . . . . . . . . . . 1 . Stealth | -11 -10 -10 -10 -9 -8 -8 -7 -7 -7 -7 -7 -7 -6 -6 -5 -5 -5 -4 -4 -4 -4 -3 -3 --------- Run | Scr Mat Min Exi Min Mat Sto Fac Was Fac Low Low Dat Pro Fac Fac Upp War Pro Fac Upp Upp Res Qua Distress Signals 10 | . 2 . . . 4 1 . . 1 . . . . 1 . . 1 . . . . . . Communications Jammed 1 | . . . . . . . . . . . . . . . . . . . . 1 . . . Distress Signals 1 | . . . . . . . . . . . . . . . . . . . . 1 . . . Times Spotted 287 | . 9 4 8 6 34 29 . . 24 9 11 . 5 13 13 . 56 10 3 8 18 10 17 Peak Tracking Total 16 | . 7 3 11 3 5 6 . . 6 4 4 . 4 3 4 . 13 5 1 3 8 8 16 Tactical Retreats 13 | . 2 . 1 . 1 1 . . . 1 2 . 1 . . . 1 . . . 2 1 . Traps | -11 -10 -10 -10 -9 -8 -8 -7 -7 -7 -7 -7 -7 -6 -6 -5 -5 -5 -4 -4 -4 -4 -3 -3 ------- Run | Scr Mat Min Exi Min Mat Sto Fac Was Fac Low Low Dat Pro Fac Fac Upp War Pro Fac Upp Upp Res Qua Traps Triggered 17 | . . . . . 2 1 1 . . . . . . 7 1 . . . 3 . . . 2 Indirectly 4 | . . . . . . . . . . . . . . 4 . . . . . . . . . Trap Hack Attempts . | . . . . . . . . . . . . . . . . . . . . . . . . Triggered . | . . . . . . . . . . . . . . . . . . . . . . . . Disarmed . | . . . . . . . . . . . . . . . . . . . . . . . . Reprogrammed . | . . . . . . . . . . . . . . . . . . . . . . . . Reused 1 | . . . . . . . . . . . . 1 . . . . . . . . . . . Traps Extracted . | . . . . . . . . . . . . . . . . . . . . . . . . Installed 3 | . . . . . . . . . . . . 3 . . . . . . . . . . . Triggered 13 | . . . . . . . . . . . . . . . . . 12 . . . 1 . . Exploded 3 | . . . 3 . . . . . . . . . . . . . . . . . . . . Machines | -11 -10 -10 -10 -9 -8 -8 -7 -7 -7 -7 -7 -7 -6 -6 -5 -5 -5 -4 -4 -4 -4 -3 -3 ---------- Run | Scr Mat Min Exi Min Mat Sto Fac Was Fac Low Low Dat Pro Fac Fac Upp War Pro Fac Upp Upp Res Qua Machines Disabled 13 | . . 1 1 . 3 2 . . 2 . . 1 . . . . . . 2 . . . 1 Max in Single Turn 2 | . . . . . 2 1 . . 1 . . 1 . . . . . . 1 . . . . Garrison Access 1 | . . . . . . 1 . . . . . . . . . . . . . . . . . Machines Sabotaged . | . . . . . . . . . . . . . . . . . . . . . . . . Garrisons Compromised 1 | . . . . . . . . . 1 . . . . . . . . . . . . . . Overloaded Fab Kills . | . . . . . . . . . . . . . . . . . . . . . . . . Fab Network Shutdowns . | . . . . . . . . . . . . . . . . . . . . . . . . Hacking | -11 -10 -10 -10 -9 -8 -8 -7 -7 -7 -7 -7 -7 -6 -6 -5 -5 -5 -4 -4 -4 -4 -3 -3 --------- Run | Scr Mat Min Exi Min Mat Sto Fac Was Fac Low Low Dat Pro Fac Fac Upp War Pro Fac Upp Upp Res Qua Machines Accessed 31 | . 1 . 2 1 4 5 . . 2 . . 3 . 1 6 . . . 1 . . 1 4 Terminals 17 | . 1 . . 1 3 2 . . 2 . . . . . 4 . . . . . . 1 3 Fabricators 2 | . . . . . . . . . . . . . . . 1 . . . 1 . . . . Repair Stations 3 | . . . . . 1 1 . . . . . . . 1 . . . . . . . . . Recycling Units 2 | . . . . . . 1 . . . . . . . . 1 . . . . . . . . Scanalyzers . | . . . . . . . . . . . . . . . . . . . . . . . . Garrison Access 2 | . . . . . . 1 . . . . . . . . . . . . . . . . 1 Total Hacks 89 | . 3 . 2 1 10 16 . . 4 . . 18 . 4 15 . . . 2 . . 2 12 Successful 55 | . 1 . 2 1 4 11 . . 1 . . 18 . 3 6 . . . . . . 1 7 Failed 34 | . 2 . . . 6 5 . . 3 . . . . 1 9 . . . 2 . . 1 5 Catastrophic 5 | . . . . . 3 . . . . . . . . . 2 . . . . . . . . Database Lockouts . | . . . . . . . . . . . . . . . . . . . . . . . . Manual 38 | . 3 . 1 2 7 9 . . . . . . . . 5 . 1 . 2 . . . 8 Terminals 47 | . 3 . . 1 8 9 . . 4 . . . . . 11 . . . . . . 2 9 Fabricators 5 | . . . . . . . . . . . . . . . 3 . . . 2 . . . . Repair Stations 9 | . . . . . 2 3 . . . . . . . 4 . . . . . . . . . Recycling Units 2 | . . . . . . 1 . . . . . . . . 1 . . . . . . . . Scanalyzers . | . . . . . . . . . . . . . . . . . . . . . . . . Garrison Access 6 | . . . . . . 3 . . . . . . . . . . . . . . . . 3 Terminal Hacks 41 | . 1 . 2 1 2 6 . . 1 . . 18 . . 4 . . . . . . 1 5 Record 6 | . . . 1 . . . . . . . . 5 . . . . . . . . . . . Part Schematic 5 | . . . . . . . . . . . . 4 . . 1 . . . . . . . . Robot Schematic 6 | . . . . . . . . . . . . 6 . . . . . . . . . . . Robot Analysis 2 | . 1 . . 1 . . . . . . . . . . . . . . . . . . . Prototype ID Bank 5 | . . . . . . 2 . . . . . 3 . . . . . . . . . . . Branch Access Points 2 | . . . . . . . . . 1 . . . . . 1 . . . . . . . . Machine Index 1 | . . . . . . . . . . . . . . . 1 . . . . . . . . Terminal Index 2 | . . . . . . 1 . . . . . . . . . . . . . . . . 1 Fabricator Index 1 | . . . . . . . . . . . . . . . . . . . . . . 1 . Scanalyzer Index 1 | . . . . . . . . . . . . . . . . . . . . . . . 1 Alert Level 2 | . . . . . 1 1 . . . . . . . . . . . . . . . . . Unreport Threat 6 | . . . . . 1 2 . . . . . . . . 1 . . . . . . . 2 Zone Layout 1 | . . . . . . . . . . . . . . . . . . . . . . . 1 EX-Prototype ID Bank 1 | . . . 1 . . . . . . . . . . . . . . . . . . . . Fabricator Hacks 1 | . . . . . . . . . . . . . . . 1 . . . . . . . . Load Schematic 1 | . . . . . . . . . . . . . . . 1 . . . . . . . . Repair Station Hacks 7 | . . . . . 2 2 . . . . . . . 3 . . . . . . . . . Scan Component 4 | . . . . . 1 1 . . . . . . . 2 . . . . . . . . . Repair 3 | . . . . . 1 1 . . . . . . . 1 . . . . . . . . . Recycling Unit Hacks . | . . . . . . . . . . . . . . . . . . . . . . . . Scanalyzer . | . . . . . . . . . . . . . . . . . . . . . . . . Garrison Access Hacks 1 | . . . . . . 1 . . . . . . . . . . . . . . . . . Seal Access 1 | . . . . . . 1 . . . . . . . . . . . . . . . . . Unauthorized Hacks 5 | . . . . . . 2 . . . . . . . . 1 . . . . . . . 2 Terminals 2 | . . . . . . 1 . . . . . . . . . . . . . . . . 1 Track 1 | . . . . . . . . . . . . . . . . . . . . . . . 1 Botnet 1 | . . . . . . 1 . . . . . . . . . . . . . . . . . Fabricators . | . . . . . . . . . . . . . . . . . . . . . . . . Repair Stations . | . . . . . . . . . . . . . . . . . . . . . . . . Recycling Units 2 | . . . . . . 1 . . . . . . . . 1 . . . . . . . . Tunnel 2 | . . . . . . 1 . . . . . . . . 1 . . . . . . . . Scanalyzers . | . . . . . . . . . . . . . . . . . . . . . . . . Garrison Access 1 | . . . . . . . . . . . . . . . . . . . . . . . 1 Reprogram 1 | . . . . . . . . . . . . . . . . . . . . . . . 1 Data Cores Recovered 2 | . . . . . 1 . . . 1 . . . . . . . . . . . . . . Used 1 | . . . . . 1 . . . . . . . . . . . . . . . . . . Hacking Detections 24 | . 1 . . 1 4 4 . . 2 . . . . 1 5 . . . 1 . . 1 4 Full Trace Events 3 | . 1 . . . . 1 . . 1 . . . . . . . . . . . . . . Feedback Events . | . . . . . . . . . . . . . . . . . . . . . . . . Feedback Blocked . | . . . . . . . . . . . . . . . . . . . . . . . . Robot Schematics Acquired 6 | . . . . . . . . . . . . 6 . . . . . . . . . . . Robots Built . | . . . . . . . . . . . . . . . . . . . . . . . . Matter . | . . . . . . . . . . . . . . . . . . . . . . . . Time . | . . . . . . . . . . . . . . . . . . . . . . . . Total Robot Build Rating . | . . . . . . . . . . . . . . . . . . . . . . . . Part Schematics Acquired 5 | . . . . . . . . . . . . 4 . . 1 . . . . . . . . Parts Built . | . . . . . . . . . . . . . . . . . . . . . . . . Matter . | . . . . . . . . . . . . . . . . . . . . . . . . Time . | . . . . . . . . . . . . . . . . . . . . . . . . Total Part Build Rating . | . . . . . . . . . . . . . . . . . . . . . . . . Parts Repaired 3 | . . . . . 1 1 . . . . . . . 1 . . . . . . . . . Time 205 | . . . . . 26 80 . . . . . . . 99 . . . . . . . . . Parts Recycled . | . . . . . . . . . . . . . . . . . . . . . . . . Recycled Matter . | . . . . . . . . . . . . . . . . . . . . . . . . Retrieved Matter . | . . . . . . . . . . . . . . . . . . . . . . . . Retrieved Components . | . . . . . . . . . . . . . . . . . . . . . . . . Parts Scanalyzed . | . . . . . . . . . . . . . . . . . . . . . . . . Part Schematics Acquired . | . . . . . . . . . . . . . . . . . . . . . . . . Parts Damaged . | . . . . . . . . . . . . . . . . . . . . . . . . Bothacking | -11 -10 -10 -10 -9 -8 -8 -7 -7 -7 -7 -7 -7 -6 -6 -5 -5 -5 -4 -4 -4 -4 -3 -3 ------------ Run | Scr Mat Min Exi Min Mat Sto Fac Was Fac Low Low Dat Pro Fac Fac Upp War Pro Fac Upp Upp Res Qua Used RIF Installer . | . . . . . . . . . . . . . . . . . . . . . . . . Robots Hacked . | . . . . . . . . . . . . . . . . . . . . . . . . Non-combat . | . . . . . . . . . . . . . . . . . . . . . . . . Combat . | . . . . . . . . . . . . . . . . . . . . . . . . Robot Hacks Applied . | . . . . . . . . . . . . . . . . . . . . . . . . Relay Couplers Released . | . . . . . . . . . . . . . . . . . . . . . . . . Robots Rewired 1 | . . . . . . . . . . . . . . 1 . . . . . . . . . Allies Hacked . | . . . . . . . . . . . . . . . . . . . . . . . . Hacks Repelled . | . . . . . . . . . . . . . . . . . . . . . . . . Allies | -11 -10 -10 -10 -9 -8 -8 -7 -7 -7 -7 -7 -7 -6 -6 -5 -5 -5 -4 -4 -4 -4 -3 -3 -------- Run | Scr Mat Min Exi Min Mat Sto Fac Was Fac Low Low Dat Pro Fac Fac Upp War Pro Fac Upp Upp Res Qua Total Allies 46 | . . 4 . . . 2 . 20 15 . . . . 1 . . . . . . . . 4 Largest Group 31 | . . 3 3 . . 2 . 20 31 7 . . . 1 . . . . . . . . 4 Highest-Rated Group 793 | . . 40 40 . . 115 . 532 793 217 . . . 32 . . . . . . . . 188 Highest-Rated Ally 99 | . . 31 16 . . 99 . 35 33 32 . . . 32 . . . . . . . . 47 Total Orders . | . . . . . . . . . . . . . . . . . . . . . . . . Ally Attacks 244 | . . 1 2 . . 24 . . 178 18 . . . 7 . . . . . . . . 14 Total Damage 3904 | . . . 11 . . 785 . . 2475 178 . . . 256 . . . . . . . . 199 Kills 34 | . . . . . . 7 . . 22 4 . . . 1 . . . . . . . . . Allies Corrupted . | . . . . . . . . . . . . . . . . . . . . . . . . Allies Melted . | . . . . . . . . . . . . . . . . . . . . . . . . Intel | -11 -10 -10 -10 -9 -8 -8 -7 -7 -7 -7 -7 -7 -6 -6 -5 -5 -5 -4 -4 -4 -4 -3 -3 ------- Run | Scr Mat Min Exi Min Mat Sto Fac Was Fac Low Low Dat Pro Fac Fac Upp War Pro Fac Upp Upp Res Qua Robot Analysis Total 2 | . 1 . . 1 . . . . . . . . . . . . . . . . . . . Derelict Logs Recovered 4 | . . . . 1 . . . . . 1 . . . . . . . . . 1 1 . . Drone Launches . | . . . . . . . . . . . . . . . . . . . . . . . . Drone Recoveries . | . . . . . . . . . . . . . . . . . . . . . . . . Exploration | -11 -10 -10 -10 -9 -8 -8 -7 -7 -7 -7 -7 -7 -6 -6 -5 -5 -5 -4 -4 -4 -4 -3 -3 ------------- Run | Scr Mat Min Exi Min Mat Sto Fac Was Fac Low Low Dat Pro Fac Fac Upp War Pro Fac Upp Upp Res Qua Turns Passed 14990 | 68 209 510 1205 561 1594 921 94 629 1088 455 687 375 857 1325 740 268 842 705 525 680 283 242 127 Spaces Moved 7242 | 45 107 277 550 277 665 358 51 331 526 206 333 177 207 631 352 153 357 365 291 383 168 223 209 Core 468 | 13 . . . . . . . . . . . . . . . . . . . . 69 178 208 Treads 6618 | 32 107 277 550 277 510 358 51 331 526 206 333 177 207 631 352 153 357 365 291 383 99 45 . Legs 156 | . . . . . 155 . . . . . . . . . . . . . . . . . 1 Wheels . | . . . . . . . . . . . . . . . . . . . . . . . . Hover . | . . . . . . . . . . . . . . . . . . . . . . . . Flight . | . . . . . . . . . . . . . . . . . . . . . . . . Fastest Speed 50 | 50 160 160 180 180 150 172 177 181 181 181 181 190 190 190 160 160 160 160 160 160 50 50 50 Average Speed 166 | 128 160 166 180 180 175 179 178 181 181 181 181 190 190 190 173 160 160 160 160 160 114 74 50 Slowest Speed 200 | 160 160 180 180 180 200 185 181 181 181 181 190 190 190 190 190 160 180 160 160 160 180 160 110 Overloaded Moves . | . . . . . . . . . . . . . . . . . . . . . . . . Propulsion Burnouts . | . . . . . . . . . . . . . . . . . . . . . . . . Robots Hopped . | . . . . . . . . . . . . . . . . . . . . . . . . Cave-ins Triggered . | . . . . . . . . . . . . . . . . . . . . . . . . Exploration Rate (%) 38 | 3 22 46 71 53 58 61 2 96 19 38 42 78 34 25 12 23 52 54 10 70 21 6 31 Regions Visited 23 Branch Regions 14 Pre-discovered Areas 5 | . . 1 1 . . 1 . . . . . . . . 1 . . . . 1 . . . Known Exits Taken 8 | . . . . . . 1 . . 1 1 1 1 1 1 1 . . . . . . . . Unknown Exits Taken 13 | 1 1 1 1 1 1 . . . . . . . . . . 1 1 1 1 1 1 1 . Scrap Searched 12 | . . 1 . 2 . . . . . 3 1 . . . . . . 2 . 2 1 . . Spaces Dug 25 | . . 9 . . 8 8 . . . . . . . . . . . . . . . . . Terrain Destroyed 167 | . . 28 7 . 19 11 . . . 2 9 . . . 3 . 24 4 8 37 14 1 . Melee . | . . . . . . . . . . . . . . . . . . . . . . . . Projectile 93 | . . . 7 . 4 3 . . . 2 . . . . 3 . 11 4 8 37 14 . . AOE 73 | . . 28 . . 15 8 . . . . 9 . . . . . 12 . . . . 1 . Terrain Rammed 1 | . . . . . . . . . . . . . . . . . 1 . . . . . . Walls Destroyed 1 | . . . . . . . . . . . . . . . . . 1 . . . . . . Machines Disabled . | . . . . . . . . . . . . . . . . . . . . . . . . Actions | -11 -10 -10 -10 -9 -8 -8 -7 -7 -7 -7 -7 -7 -6 -6 -5 -5 -5 -4 -4 -4 -4 -3 -3 --------- Run | Scr Mat Min Exi Min Mat Sto Fac Was Fac Low Low Dat Pro Fac Fac Upp War Pro Fac Upp Upp Res Qua Total 9396 | 54 131 306 767 307 919 544 55 352 630 257 395 218 667 697 432 176 561 462 334 408 221 275 228 Wait 1177 | . 12 6 197 4 73 48 . . 68 10 6 . 455 19 11 23 126 75 3 7 17 17 . Move 7220 | 44 106 276 549 276 664 357 51 330 525 205 332 176 206 630 351 152 356 364 290 382 167 222 209 Hop . | . . . . . . . . . . . . . . . . . . . . . . . . Pick Up 136 | 4 3 7 6 7 24 19 . 5 3 7 10 8 . 4 7 . 10 2 8 1 . 1 . Fast Attach 79 | 2 . 1 . . 14 15 1 3 2 . 1 1 . 6 11 . 3 1 5 . . 7 6 Attach 92 | 4 1 . 4 . 16 3 2 . . 8 9 5 . 2 8 . 7 4 9 1 6 3 . Detach 16 | . . . 2 . 1 1 . 1 1 . 2 2 . . 1 . 2 . 1 . . 2 . Swap 64 | . 1 2 1 1 8 14 . . 2 . 8 6 3 3 2 1 7 2 3 . . . . Drop 157 | . 1 1 7 . 27 28 1 7 4 8 10 15 . 1 17 . 10 . 8 . 10 2 . Fire 376 | . 7 10 1 14 90 39 . 5 9 19 17 . 3 27 24 . 39 13 7 17 21 14 . Melee 10 | . . . . . . 7 . 1 . . . 2 . . . . . . . . . . . Ram 1 | . . . . . . . . . . . . . . . . . 1 . . . . . . Kick 1 | . . . . . 1 . . . . . . . . . . . . . . . . . . Crush 47 | . . 3 . 5 1 13 . . 16 . . . . 1 . . . 1 . . . 7 . Escape Stasis 13 | . . . . . . . . . . . . . . . . . . . . . . . 13 Rewire 4 | . . . . . . . . . . . . . . 4 . . . . . . . . . Trap 3 | . . . . . . . . . . . . 3 . . . . . . . . . . . Miscellaneous . | . . . . . . . . . . . . . . . . . . . . . . . . Route ------- -11/Scrapyard -10/Materials (discovered 2 exits: [*Mat] / [*Min]) -10/Mines (discovered 2 exits: [*Mat] / *Exi) -10/Exiles (discovered 2 exits: *Min x2) -9/Mines -8/Materials (discovered 3 exits: *Fac x2 / *Sto) -8/Storage -7/Factory -7/Waste -7/Factory (discovered 2 exits: *Low x2) -7/Lower Caves -7/Lower Caves -7/Data Miner -6/Proximity Caves -6/Factory -5/Factory (discovered 2 exits: *Upp x2) -5/Upper Caves -5/Warlord -4/Proximity Caves -4/Factory -4/Upper Caves -4/Upper Caves -3/Research -3/Quarantine History --------- Turn | Location | Event 5 | -11/Scrapyard | Discovered new exit (range 15) 69 | -11/Scrapyard | Entered Materials 152 | -10/Materials | Discovered new exit (range 16) 235 | -10/Materials | Discovered new exit (range 16) 278 | -10/Materials | Entered Mines 302 | -10/Mines | Found a damaged Exp. Sensor Array with a note attached 306 | -10/Mines | Found Prototype Device 307 | -10/Mines | Build established: Mutant 319 | -10/Mines | Met a Derelict bent on vengeance 353 | -10/Mines | Escorted by a lone wolf Derelict 367 | -10/Mines | Deemed a non-threat by the Exiles lab entrance 367 | -10/Mines | Discovered new exit (range 5) 373 | -10/Mines | Learned location of Storage (-8) 477 | -10/Mines | Joined a pair of Derelicts in attacking an 0b10 outpost 598 | -10/Mines | Discovered new exit (range 14) 611 | -10/Mines | Assisted by bots powering up and referring to "LRC-V3" 788 | -10/Mines | Entered Exiles 788 | -10/Exiles | Accompanied by 3 allies 837 | -10/Exiles | Met 8R-AWN 862 | -10/Exiles | Met EX-HEX 913 | -10/Exiles | Met EX-BIN 934 | -10/Exiles | Met EX-DEC 947 | -10/Exiles | Learned location of Zion (-6) 1232 | -10/Exiles | Aligned with FarCom system 1234 | -10/Exiles | Given EX-Vault access code 1276 | -10/Exiles | Opened EX-Vault 1288 | -10/Exiles | Found AWS/Gauss 1291 | -10/Exiles | Found PSU Rigger 1332 | -10/Exiles | Warned to stay clear of 0b10 Research branches 1452 | -10/Exiles | Discovered new exit (range 14) 1834 | -10/Exiles | Attacked by the Exiles 1942 | -10/Exiles | Core integrity fell below 50% 1943 | -10/Exiles | Discovered new exit (range 15) 1993 | -10/Exiles | Entered Mines 2073 | -9/Mines | Found a hidden stash of uninstalled traps 2202 | -9/Mines | A weapon hastily lodged in a ceiling crevice suddenly fell to the ground 2416 | -9/Mines | Assembled infested the area 2421 | -9/Mines | Assisted by a Guerilla fighting off Assembled 2503 | -9/Mines | Discovered new exit (range 7) 2554 | -9/Mines | Entered Materials 2554 | -8/Materials | Evolved 4 slots: Utility x3, Weapon x1 2664 | -8/Materials | Repaired Grenade Launcher 2861 | -8/Materials | Lost 3 parts (2u1w) 2875 | -8/Materials | Identified Exp. Sensor Array 3180 | -8/Materials | Build established: Scavenger-Tank 3263 | -8/Materials | Discovered new exit (range 15) 3288 | -8/Materials | Identified exit to Factory 3716 | -8/Materials | Discovered exit to Factory (range 4) 4020 | -8/Materials | Discovered new exit (range 16) 4148 | -8/Materials | Entered Storage 4512 | -8/Storage | Garrison activated, responded to threat 4564 | -8/Storage | Core integrity fell below 50% 4602 | -8/Storage | Met 01-MTF 4801 | -8/Storage | Repaired Exp. Sensor Array 4834 | -8/Storage | Discovered exit to Factory (range 16) 4899 | -8/Storage | Build established: Scavenger-Gunner 4972 | -8/Storage | Destroyed 01-MTF 4983 | -8/Storage | Found 01-MTF's Shockpuncher 5034 | -8/Storage | Found Prototype Device 5034 | -8/Storage | Identified 01-MTF's Autohacker 5069 | -8/Storage | Entered Factory 5069 | -7/Factory | Evolved 2 slots: Propulsion x1, Utility x1 5070 | -7/Factory | Identified exit to Lower Caves 5163 | -7/Factory | Sucked down chute 5163 | -7/Factory | Entered Waste 5164 | -7/Waste | Joined by Warlord forces that had cleared the area 5244 | -7/Waste | Build established: Hauler-Mutant 5584 | -7/Waste | Discovered new exit (range 16) 5792 | -7/Waste | Entered Factory 5792 | -7/Factory | Accompanied by 19 allies 6280 | -7/Factory | Build established: Hauler-Tank 6880 | -7/Factory | Entered Lower Caves 6880 | -7/Lower Caves | Accompanied by 7 allies 7233 | -7/Lower Caves | Learned Factory emergency access door positions 7295 | -7/Lower Caves | Discovered new exit (range 6) 7306 | -7/Lower Caves | Identified exit to Lower Caves 7335 | -7/Lower Caves | Entered another Lower Caves area 7445 | -7/Lower Caves | Build established: Hauler-Skirmisher 7878 | -7/Lower Caves | Discovered new exit (range 10) 8020 | -7/Lower Caves | Identified exit to Data Miner 8022 | -7/Lower Caves | Entered Data Miner 8022 | -7/Data Miner | Discovered new exit (range 6) 8067 | -7/Data Miner | Met Data Miner 8145 | -7/Data Miner | Received God Mode back door access code from Data Miner 8166 | -7/Data Miner | Destroyed Data Miner 8169 | -7/Data Miner | Data Conduit disabled 8246 | -7/Data Miner | Found Prototype Hackware 8249 | -7/Data Miner | Found Prototype Hackware 8251 | -7/Data Miner | Found Prototype Hackware 8396 | -7/Data Miner | Identified exit to Proximity Caves 8397 | -7/Data Miner | Entered Proximity Caves 8906 | -6/Proximity Caves | Build established: Mutant 9243 | -6/Proximity Caves | Discovered new exit (range 7) 9252 | -6/Proximity Caves | Identified exit to Factory 9254 | -6/Proximity Caves | Entered Factory 9254 | -6/Factory | Evolved 2 slots: Utility x2 9752 | -6/Factory | Build established: Tank 10382 | -6/Factory | Discovered new exit (range 8) 10426 | -6/Factory | Repaired Mni. Fusion Reactor? 10577 | -6/Factory | Identified exit to Factory 10579 | -6/Factory | Entered another Factory area 10579 | -5/Factory | Evolved 2 slots: Propulsion x1, Utility x1 10728 | -5/Factory | Identified Deep Network Scanner 10729 | -5/Factory | Identified Quantum Router 10730 | -5/Factory | Identified exit to Upper Caves 10814 | -5/Factory | Identified Ghost Barrier 10930 | -5/Factory | Found Hvy. Reactive Plating 10949 | -5/Factory | Found Hvy. Reactive Plating 11043 | -5/Factory | Build established: Hacker-Tank 11319 | -5/Factory | Entered Upper Caves 11584 | -5/Upper Caves | A Derelict revealed a hidden shortcut to "reach the base" 11587 | -5/Upper Caves | Entered Warlord 11779 | -5/Warlord | Met Warlord 11804 | -5/Warlord | Warlord's base attacked by MAIN.C 11896 | -5/Warlord | Found Prototype Device 11897 | -5/Warlord | Identified Exp. Phase Shifter 11904 | -5/Warlord | Found Prototype Reactor 11916 | -5/Warlord | Found Prototype Processor 12154 | -5/Warlord | Warlord forces counterattacked 12196 | -5/Warlord | Spotted Executioner 12203 | -5/Warlord | Spotted Striker 12213 | -5/Warlord | Destroyed Executioner 12229 | -5/Warlord | Spotted Striker 12242 | -5/Warlord | Spotted Striker 12249 | -5/Warlord | Destroyed Striker 12255 | -5/Warlord | Identified Exp. Target Analyzer 12286 | -5/Warlord | P-80 Master assimilated allied SN-C9D(Y) 12320 | -5/Warlord | Spotted Executioner 12327 | -5/Warlord | Spotted Executioner 12334 | -5/Warlord | System corruption reached 10% 12342 | -5/Warlord | Destroyed Executioner 12361 | -5/Warlord | Destroyed Executioner 12370 | -5/Warlord | Discovered new exit (range 20) 12378 | -5/Warlord | Found Prototype Processor 12378 | -5/Warlord | Identified Exp. Core Analyzer 12385 | -5/Warlord | Destroyed 7 combat bots 12404 | -5/Warlord | Spotted Striker 12404 | -5/Warlord | Spotted Striker 12414 | -5/Warlord | Destroyed Striker 12429 | -5/Warlord | Entered Proximity Caves 12455 | -4/Proximity Caves | Lost 4 parts (1n1u2w) 12738 | -4/Proximity Caves | Build established: Scavenger-Gunner 12907 | -4/Proximity Caves | Spotted B-86 Titan 12919 | -4/Proximity Caves | Destroyed B-86 Titan 13059 | -4/Proximity Caves | Attracted the attention of an 0b10 checkpoint 13123 | -4/Proximity Caves | Discovered new exit (range 7) 13134 | -4/Proximity Caves | Entered Factory 13134 | -4/Factory | Evolved 2 slots: Power x1, Weapon x1 13135 | -4/Factory | Identified Vortex Chain Reactor 13531 | -4/Factory | Discovered new exit (range 10) 13659 | -4/Factory | Entered Upper Caves 13770 | -4/Upper Caves | Build established: Hacker-Tank 14101 | -4/Upper Caves | Build established: Hacker-Gunner 14121 | -4/Upper Caves | Learned location of Quarantine (-3) 14304 | -4/Upper Caves | Discovered new exit (range 9) 14339 | -4/Upper Caves | Entered another Upper Caves area 14349 | -4/Upper Caves | Attracted the attention of an 0b10 outpost 14457 | -4/Upper Caves | Lost 6 parts (1n2u3w) 14603 | -4/Upper Caves | Lost 3 parts (1n1u1w) 14621 | -4/Upper Caves | Discovered new exit (range 4) 14622 | -4/Upper Caves | Entered Research 14622 | -3/Research | Evolved 2 slots: Propulsion x2 14704 | -3/Research | Build established: Hacker-Mutant 14794 | -3/Research | System corruption reached 10% 14835 | -3/Research | Lost 9 parts (2p3n2u2w) 14856 | -3/Research | Discovered new exit (range 15) 14864 | -3/Research | Entered Quarantine 14970 | -3/Quarantine | Garrison activated, responded to threat 14975 | -3/Quarantine | Scanned by Researcher 14985 | -3/Quarantine | Core integrity fell below 50% 14988 | -3/Quarantine | Core integrity fell below 20% 14991 | -3/Quarantine | Destroyed by S-43 Plague with Heavy Machine Gun Last Messages --------------- 14983_ Held in stasis. 14983_ C-55 Analyst is analyzing... 14984_ G-67 Veteran destroyed. 14984_ Penetrated by Slug. 14984_ S-43 Plague suffers critical hit. 14984_ Held in stasis. 14984_ C-55 Analyst is analyzing... 14984_ Penetrated by Slug. 14984_ Slug penetrates Wall. 14986_ Penetrated by Slug. 14986_ Slug penetrates G-67 Veteran. 14987_ Held in stasis. 14987_ C-55 Analyst is analyzing... 14987_ Penetrated by Slug. 14987_ Slug penetrates Wall. 14988_ Held in stasis. 14989_ Slug penetrates G-67 Veteran. 14989_ Penetrated by Slug. 14991_ Held in stasis. 14991_ C-55 Analyst is analyzing... Map ----- +----------------------------------------------------+ | ?????????????????????????????????????????????????? | | ?????????????????????????????????????????????????? | | ?????????????????????????????????????????????????? | | ?????????????????????????????????????????????????? | | ???????##????????????????????????????????????????? | | ??????? ???????????????????????????????????????? | | ?????? ???????????????????????????????????????? | | ?????""" "???? #????????????????????????????????? | | ???? """ """ #????????????????????????????????? | | ???# """ """ #????????????????????????????????? | | ???# #????????????????????????????????? | | ???# """ """ #????????????????????????????????? | | ???# """ """ #????????????????????????????????? | | ???# """ """ ! #????????????????????????????????? | | #### #??#####?????????????????????????? | | # ""T"" ???# " #?????????????????????????? | | # """"" ???#"G"#?????????????????????????? | | #####+###########" "#####?????????????????????? | | ^ ^ ! ##????????????????????? | | !% "#????????????????????? | | """"""" """""""g #????????????????????? | | """""""="""""""ggg "#????????????????????? | | ###^ """""""!""""""" ##????????????????????? | | #?# %^=[h* = g #?????????????????????? | | #?# """""""^h %! #######???????????????? | | #?# """""""[c = @ s ????????? | | #?# """"""" h! ! s s s ????????? | | #?# c !! s ????????? | | #?# w !! | ?????????? | | +###?# # """"T"""" ##################?????????? | | # #"""""""""""#??????????????????????????? | | """ # #############?##########???????????????? | | """ + #?????????????# #???????????????? | | """ # #?????????????# #???????????????? | | # #?????????????# #???????????????? | | ?# #?????????????# ###?????????????? | | "T""?# #?????????????# !! ""#?????????????? | | """??# #?????????????# ! ""#?????????????? | | ??# ############### ""#?????????????? | | ###??# + T#?????????????? | | !#??# # ! ""#?????????????? | | #??# + ""#?????????????? | | " #??# # """ ""#?????????????? | | " #??################## # """ ###?????????????? | | " #???????????????????# #! """ #???????????????? | | #######??????????#### # #???????????????? | | +## #??????????#T"# # """ #???????????????? | | ! ############ "# # """ #???????????????? | | # """ #???????????????? | | ! ######### ####### #???????????????? | +----------------------------------------------------+ Best States ------------- Heat Dissipation 74 Energy Generation 55 Energy Capacity 700 Matter Stores 300 Matter Capacity 300 Sight Range 23 Robot Scan Range 30 Terrain Scan Range 14 Terrain Scan Density 10 Jamming Range 16 Additional Mass Support 12 Armor Coverage 1200 Resistance: KI 40 Weapon Shielding 66 Weapon Cycling 20 Phase Shifting 20 Evasion (%) 60 Target Analysis 12 Core Analysis 15 Armor Integrity Analysis 66 Recoil Reduction 5 Energy Filtering 30 Kinecelleration 30 Offensive Hacking 45 Defensive Hacking 25 Item Schematics ----------------- Combat Drone Bay | -7/Data Miner | Free Lgt. Regenerative Plating | -7/Data Miner | Free Exp. Terrain Scan Processor | -7/Data Miner | Free Plasma Sword | -7/Data Miner | Free Adv. Force Field | -5/Factory | Hacked Robot Schematics ------------------ S-27 Virus | -7/Data Miner | Free G-50 Soldier | -7/Data Miner | Free L-41 Fighter | -7/Data Miner | Free X-72 Disruptor | -7/Data Miner | Free H-66 Slayer | -7/Data Miner | Free I-36 Angel | -7/Data Miner | Free Fabricated ------------ Nothing Alien Tech Used ----------------- None Achievements -------------- None Challenges ------------ None Game ------ Seed ContainmentDerelictDevice Manual? 0 Play Time 01:32:51 Cumulative 523.9 hours Start 2021.08.22 @ 09:30:32 End 2021.08.22 @ 11:14:01 Sessions 1 Manual Loads 0 Difficulty Rogue Special Mode None Game No. 379 Rogue 372 Adventurer 0 Explorer 7 Win Type - Total 28 Types 9/3/11/1/0/1/1/1/1 Lore% 87 Gallery% 95 Achievement% 81 Wizard Run 0 Options --------- ASCII 0 Keyboard 0 Movement Numpad Keybinds 0 Fullscreen 1 Font 18/X11Bold Map View 76x50 Tactical HUD 1 Map Filters NONE Filters NONE Steam 1 RUN: e51530bd-bb93-467b-b483-d8c76a11de2b